Body Name,Body,Service Division Label,Service Division Code,Organisational Unit,Expenditure Category,Expenditure Code,CIPFA detailed expediture type,CIPFA detailed expediture code,Narrative,Date,Transaction number,Net Amount,Capital and Revenue,Supplier Name,Supplier ID,,
Chorley Borough Council,http://statistics.data.gov.uk/id/local-authority/30UE,Business Support,1095,Business Development & Growth,Miscellaneous Expenses,40200,Miscellaneous Expenses,5034,"Photography of Strawberry Fields Digital Hub-Chorley Internal, external including drone footage.",27/09/2019,0140976,930.00,Revenue,246Photography,78169,,
Chorley Borough Council,http://statistics.data.gov.uk/id/local-authority/30UE,Unapportionable Central OHeads,1009,Policy & Governance,Service Fees,40056,Services,5027,Can`t Do or Won`t Do 10/10/19,11/09/2019,0140765,255.00,Revenue,ACAS,21660,,
Chorley Borough Council,http://statistics.data.gov.uk/id/local-authority/30UE,Democratic Represent and  Mgnt,1007,Early Intervention,External Contractor - Trust or Charity,50008,Private Contractors,5042,Active Nation Management Fee 2019 2020,04/09/2019,0140590,"34,726.79",Revenue,Active Nation UK Ltd,17144,,
Chorley Borough Council,http://statistics.data.gov.uk/id/local-authority/30UE,Central Support Services,1009,Customer & Digital,Telephones - Other,40085,Communication and Computing,5028,Adept Telecom - July 2019,06/09/2019,0140567,"1,418.81",Revenue,Adept Telecom PLC,77452,,
Chorley Borough Council,http://statistics.data.gov.uk/id/local-authority/30UE,Central Support Services,1009,Customer & Digital,Telephones - Other,40085,Communication and Computing,5028,Adept Telecom - Aug 2019,25/09/2019,0140798,"1,418.81",Revenue,Adept Telecom PLC,77452,,
Chorley Borough Council,http://statistics.data.gov.uk/id/local-authority/30UE,Capital,Capital,Business Development & Growth,Architects Fees,03022,Capital Expenditure,Capital,Extra 20k budget allocated to order,13/09/2019,0140609,"3,502.00",Capital,AEW Architects & Designers Ltd,66520,,
Chorley Borough Council,http://statistics.data.gov.uk/id/local-authority/30UE,Unapportionable Central OHeads,1009,Customer & Digital,Bank Charges,40151,Miscellaneous Expenses,5034,Transactions,04/09/2019,0139887,"1,581.38",Revenue,Allpay Net Ltd,17242,,
Chorley Borough Council,http://statistics.data.gov.uk/id/local-authority/30UE,Unapportionable Central OHeads,1009,Customer & Digital,Bank Charges,40151,Miscellaneous Expenses,5034,Transactions,11/09/2019,0140602,"1,438.80",Revenue,Allpay Net Ltd,17242,,
Chorley Borough Council,http://statistics.data.gov.uk/id/local-authority/30UE,Central Support Services,1009,Policy & Governance,Car Leasing Payment,14100,Direct Employee Expenses,5001,VIN REDACTED,18/09/2019,0138820,263.00,Revenue,Alphabet (Uk) Fleet Management Ltd,16651,,
Chorley Borough Council,http://statistics.data.gov.uk/id/local-authority/30UE,Central Support Services,1009,Policy & Governance,Car Leasing Payment,14100,Direct Employee Expenses,5001,vat,18/09/2019,0138820,26.30,Revenue,Alphabet (Uk) Fleet Management Ltd,16651,,
Chorley Borough Council,http://statistics.data.gov.uk/id/local-authority/30UE,Central Support Services,1009,Policy & Governance,Car Leasing Payment,14100,Direct Employee Expenses,5001,VIN REDACTED,18/09/2019,0138821,251.52,Revenue,Alphabet (Uk) Fleet Management Ltd,16651,,
Chorley Borough Council,http://statistics.data.gov.uk/id/local-authority/30UE,Central Support Services,1009,Policy & Governance,Car Leasing Payment,14100,Direct Employee Expenses,5001,vat,18/09/2019,0138821,25.15,Revenue,Alphabet (Uk) Fleet Management Ltd,16651,,
Chorley Borough Council,http://statistics.data.gov.uk/id/local-authority/30UE,Central Support Services,1009,Policy & Governance,Car Leasing Payment,14100,Direct Employee Expenses,5001,NAME REDACTED,18/09/2019,0139185,714.25,Revenue,Alphabet (Uk) Fleet Management Ltd,16651,,
Chorley Borough Council,http://statistics.data.gov.uk/id/local-authority/30UE,Development Control,1091,Policy & Governance,Car Leasing Payment,14100,Direct Employee Expenses,5001,NAME REDACTED,18/09/2019,0140764,"2,954.48",Revenue,Alphabet (Uk) Fleet Management Ltd,16651,,
Chorley Borough Council,http://statistics.data.gov.uk/id/local-authority/30UE,Development Control,1091,Policy & Governance,Car Leasing Payment,14100,Direct Employee Expenses,5001,vat,18/09/2019,0140764,250.13,Revenue,Alphabet (Uk) Fleet Management Ltd,16651,,
Chorley Borough Council,http://statistics.data.gov.uk/id/local-authority/30UE,Democratic Represent and  Mgnt,1007,Business Development & Growth,Rent/Hire Of Premises,20017,Premises Rents,5007,rent oct to dec 2019,13/09/2019,0140767,"10,625.00",Revenue,Alston Properties Ltd,77241,,
Chorley Borough Council,http://statistics.data.gov.uk/id/local-authority/30UE,Corporate Management,1008,Policy & Governance,Exhibitions & Special Events,40158,Miscellaneous Expenses,5034,"Performance in Market Walk on Thursday 25 July, Performance in Market Walk on Thursday 29 August",11/09/2019,0138858,300.00,Revenue,Animal Island Ltd,78013,,
Chorley Borough Council,http://statistics.data.gov.uk/id/local-authority/30UE,Corporate Management,1008,Policy & Governance,Exhibitions & Special Events,40158,Miscellaneous Expenses,5034,"Performance in Market Walk on Thursday 25 July, Performance in Market Walk on Thursday 29 August",25/09/2019,0138860,300.00,Revenue,Animal Island Ltd,78013,,
Chorley Borough Council,http://statistics.data.gov.uk/id/local-authority/30UE,Service Management & Support,1009,Customer & Digital,Protective Clothing,40040,"Clothing, Uniforms and Laundry",5025,"Arco 6P8700 ST820 S1 P Black Leather Brogue Safety Shoe, steel toecap, padded collar, chemical and oil resistant sole",04/09/2019,0140407,83.08,Revenue,Arco Limited,17458,,
Chorley Borough Council,http://statistics.data.gov.uk/id/local-authority/30UE,Service Management & Support,1009,Customer & Digital,Protective Clothing,40040,"Clothing, Uniforms and Laundry",5025,"Safety Wellingtons, Black PVC Water Resistant �steel toe cap &steel midsole, Sz 7 x 2, 8 x 2, 9 x 1, 10 x 3",04/09/2019,0140407,98.16,Revenue,Arco Limited,17458,,
Chorley Borough Council,http://statistics.data.gov.uk/id/local-authority/30UE,Service Management & Support,1009,Customer & Digital,Protective Clothing,40040,"Clothing, Uniforms and Laundry",5025,1 x Arco Premium Disposable Ear Plugs �box of 200 SNR 34 @ 8.75 each,04/09/2019,0140407,8.75,Revenue,Arco Limited,17458,,
Chorley Borough Council,http://statistics.data.gov.uk/id/local-authority/30UE,Service Management & Support,1009,Customer & Digital,Protective Clothing,40040,"Clothing, Uniforms and Laundry",5025,20 x Arco Essentials Dust &Mist General Purpose Goggles (343000) @ 0.73 each,04/09/2019,0140407,14.60,Revenue,Arco Limited,17458,,
Chorley Borough Council,http://statistics.data.gov.uk/id/local-authority/30UE,Service Management & Support,1009,Customer & Digital,Protective Clothing,40040,"Clothing, Uniforms and Laundry",5025,Arco Essentials Cargo Trousers @ 6.73 sizes and quantity: Waist 38 regular leg  x 5,04/09/2019,0140407,33.65,Revenue,Arco Limited,17458,,
Chorley Borough Council,http://statistics.data.gov.uk/id/local-authority/30UE,Service Management & Support,1009,Customer & Digital,Protective Clothing,40040,"Clothing, Uniforms and Laundry",5025,2 x 3M PELTOR G2031A Forestry Combination Unit @ 29.03 each,04/09/2019,0140407,58.06,Revenue,Arco Limited,17458,,
Chorley Borough Council,http://statistics.data.gov.uk/id/local-authority/30UE,Service Management & Support,1009,Customer & Digital,Protective Clothing,40040,"Clothing, Uniforms and Laundry",5025,3M Headgear G500,04/09/2019,0140407,67.19,Revenue,Arco Limited,17458,,
Chorley Borough Council,http://statistics.data.gov.uk/id/local-authority/30UE,Unapportionable Central OHeads,1009,Policy & Governance,Car Leasing Payment,14100,Direct Employee Expenses,5001,VIN REDACTED NAME REDACTED,04/09/2019,0140226,"2,768.28",Revenue,Arnold Clark Finance Ltd,20685,,
Chorley Borough Council,http://statistics.data.gov.uk/id/local-authority/30UE,Unapportionable Central OHeads,1009,Policy & Governance,Car Leasing Payment,14100,Direct Employee Expenses,5001,vat,04/09/2019,0140226,227.13,Revenue,Arnold Clark Finance Ltd,20685,,
Chorley Borough Council,http://statistics.data.gov.uk/id/local-authority/30UE,Homelessness,1075,Policy & Governance,Car Leasing Payment,14100,Direct Employee Expenses,5001,VIN REDACTED,04/09/2019,0140227,"3,092.64",Revenue,Arnold Clark Finance Ltd,20685,,
Chorley Borough Council,http://statistics.data.gov.uk/id/local-authority/30UE,Homelessness,1075,Policy & Governance,Car Leasing Payment,14100,Direct Employee Expenses,5001,vat,04/09/2019,0140227,261.71,Revenue,Arnold Clark Finance Ltd,20685,,
Chorley Borough Council,http://statistics.data.gov.uk/id/local-authority/30UE,Service Management & Support,1009,Policy & Governance,Car Leasing Payment,14100,Direct Employee Expenses,5001,VIN REDACTED,04/09/2019,0140227,"4,141.08",Revenue,Arnold Clark Finance Ltd,20685,,
Chorley Borough Council,http://statistics.data.gov.uk/id/local-authority/30UE,Service Management & Support,1009,Policy & Governance,Car Leasing Payment,14100,Direct Employee Expenses,5001,vat,04/09/2019,0140227,371.27,Revenue,Arnold Clark Finance Ltd,20685,,
Chorley Borough Council,http://statistics.data.gov.uk/id/local-authority/30UE,Central Support Services,1009,Policy & Governance,Car Leasing Payment,14100,Direct Employee Expenses,5001,"NAME REDACTED FORD Focus1.0 Eco Boost 125 St-Line X 5 door, Ruby red, B&O Audio System, 3 years x 12,000 miles",04/09/2019,0140499,"2,976.48",Revenue,Arnold Clark Finance Ltd,20685,,
Chorley Borough Council,http://statistics.data.gov.uk/id/local-authority/30UE,Central Support Services,1009,Policy & Governance,Car Leasing Payment,14100,Direct Employee Expenses,5001,vat,04/09/2019,0140499,265.67,Revenue,Arnold Clark Finance Ltd,20685,,
Chorley Borough Council,http://statistics.data.gov.uk/id/local-authority/30UE,Central Support Services,1009,Policy & Governance,Car Leasing Payment,14100,Direct Employee Expenses,5001,VIN REDACTED NAME REDACTED,04/09/2019,0140501,"3,140.28",Revenue,Arnold Clark Finance Ltd,20685,,
Chorley Borough Council,http://statistics.data.gov.uk/id/local-authority/30UE,Central Support Services,1009,Policy & Governance,Car Leasing Payment,14100,Direct Employee Expenses,5001,vat,04/09/2019,0140501,276.60,Revenue,Arnold Clark Finance Ltd,20685,,
Chorley Borough Council,http://statistics.data.gov.uk/id/local-authority/30UE,Central Support Services,1009,Policy & Governance,Car Leasing Payment,14100,Direct Employee Expenses,5001,VIN REDACTED NAME REDACTED,04/09/2019,0140502,"3,630.96",Revenue,Arnold Clark Finance Ltd,20685,,
Chorley Borough Council,http://statistics.data.gov.uk/id/local-authority/30UE,Central Support Services,1009,Policy & Governance,Car Leasing Payment,14100,Direct Employee Expenses,5001,vat,04/09/2019,0140502,327.65,Revenue,Arnold Clark Finance Ltd,20685,,
Chorley Borough Council,http://statistics.data.gov.uk/id/local-authority/30UE,Homelessness,1075,Policy & Governance,Car Leasing Payment,14100,Direct Employee Expenses,5001,NAME REDACTED,20/09/2019,0140877,"3,477.36",Revenue,Arnold Clark Finance Ltd,20685,,
Chorley Borough Council,http://statistics.data.gov.uk/id/local-authority/30UE,Homelessness,1075,Policy & Governance,Car Leasing Payment,14100,Direct Employee Expenses,5001,vat,20/09/2019,0140877,314.86,Revenue,Arnold Clark Finance Ltd,20685,,
Chorley Borough Council,http://statistics.data.gov.uk/id/local-authority/30UE,Central Support Services,1009,Customer & Digital,Miscellaneous Expenses,40200,Miscellaneous Expenses,5034,Memorial Photography - Adlington and Chorley,11/09/2019,0140376,"2,939.52",Revenue,Atlantic Geomatics (int`l) Ltd,77816,,
Chorley Borough Council,http://statistics.data.gov.uk/id/local-authority/30UE,Homelessness,1075,Early Intervention,Laundry,40042,"Clothing, Uniforms and Laundry",5025,Cotswold Supported Housing 12 month laundry services  01/04/19 to 31/03/20 Total amount 6000,13/09/2019,0140603,517.45,Revenue,Berendsen UK Ltd,20799,,
Chorley Borough Council,http://statistics.data.gov.uk/id/local-authority/30UE,Corporate Management,1008,Customer & Digital,Printing,40043,"Printing, Stationery & General",5026,"2000 X Garden Waste bin tags as per Quote No, 151307",04/09/2019,0140526,625.00,Revenue,BHW Print Group,77459,,
Chorley Borough Council,http://statistics.data.gov.uk/id/local-authority/30UE,Corporate Management,1008,Customer & Digital,Printing,40043,"Printing, Stationery & General",5026,"600 X Bin Contamination Tag, as per Quote No. 151308",04/09/2019,0140526,381.00,Revenue,BHW Print Group,77459,,
Chorley Borough Council,http://statistics.data.gov.uk/id/local-authority/30UE,Corporate Management,1008,Customer & Digital,Printing,40043,"Printing, Stationery & General",5026,Bin handle tag x2000 as per estimate 141871.,13/09/2019,0140828,676.00,Revenue,BHW Print Group,77459,,
Chorley Borough Council,http://statistics.data.gov.uk/id/local-authority/30UE,Central Support Services,1009,Business Development & Growth,Consultants` Fees,40077,Services,5027,FWA-1G 1G/1G Fixed Wireless Managed Internet Access 6 months - 790 per month,06/09/2019,0140584,750.00,Revenue,Boundless Networks Ltd,77550,,
Chorley Borough Council,http://statistics.data.gov.uk/id/local-authority/30UE,Capital,Capital,Business Development & Growth,Main Contractor,03007,Capital Expenditure,Capital,Structural works following a survey regarding safety concerns,13/09/2019,0140700,"7,966.58",Capital,Bryan Lee Building Contractors Ltd,78160,,
Chorley Borough Council,http://statistics.data.gov.uk/id/local-authority/30UE,Unapportionable Central OHeads,1009,Customer & Digital,Emergency Call Out System,40096,Communication and Computing,5028,Out of Hours call charges 19/20,20/09/2019,0140701,372.00,Revenue,CallCare Ltd,20257,,
Chorley Borough Council,http://statistics.data.gov.uk/id/local-authority/30UE,Unapportionable Central OHeads,1009,Policy & Governance,Refuse Collection,20037,Cleaning and Domestic Supplies,5012,Invoice number CN19934511,04/09/2019,0140031,"1,228.11",Revenue,Cannon Hygiene Limited,18158,,
Chorley Borough Council,http://statistics.data.gov.uk/id/local-authority/30UE,Corporate Management,1008,Customer & Digital,Clinical Waste Collection,50007,Private Contractors,5042,Provision of Clinical waste collection and disposal service to residential properties in Chorley Borough (1/4/19 to /3/20),04/09/2019,0140279,975.79,Revenue,Cannon Hygiene Limited,18158,,
Chorley Borough Council,http://statistics.data.gov.uk/id/local-authority/30UE,Corporate Management,1008,Customer & Digital,Clinical Waste Collection,50007,Private Contractors,5042,Provision of Clinical waste collection and disposal service to residential properties in Chorley Borough (1/4/19 to /3/20),04/09/2019,0140598,970.70,Revenue,Cannon Hygiene Limited,18158,,
Chorley Borough Council,http://statistics.data.gov.uk/id/local-authority/30UE,Central Support Services,1009,Customer & Digital,`Professional Fees,14011,Direct Employee Expenses,5001,Consultation fees for DVLA group 2 medicals invoice 8702,13/09/2019,0140573,440.00,Revenue,Castlesteads Ltd,72796,,
Chorley Borough Council,http://statistics.data.gov.uk/id/local-authority/30UE,Central Support Services,1009,Customer & Digital,`Professional Fees,14011,Direct Employee Expenses,5001,Consultation fees for DVLA group 2 medicals invoice 8425,13/09/2019,0140633,560.00,Revenue,Castlesteads Ltd,72796,,
Chorley Borough Council,http://statistics.data.gov.uk/id/local-authority/30UE,Unapportionable Central OHeads,1009,Policy & Governance,Consultants` Fees,40077,Services,5027,"For acting as lead authority procuring, negotiating and entering into the agreement with Allpay",11/09/2019,0140671,"1,500.00",Revenue,Cheshire East Borough Council,78226,,
Chorley Borough Council,http://statistics.data.gov.uk/id/local-authority/30UE,Parking Services,1066,Business Development & Growth,External Contractors,50008,Private Contractors,5042,"01.04.2019-31.03.2020, Notice Processing Services, Auto Telephone/Internet Payments, Evidence and Submission Services.",27/09/2019,0140937,727.50,Revenue,Chipside Ltd,22063,,
Chorley Borough Council,http://statistics.data.gov.uk/id/local-authority/30UE,Parking Services,1066,Business Development & Growth,External Contractors,50008,Private Contractors,5042,"Processing 075, 076, 077, 079, 080, 085, 086 - MIPERMIT FEES/CHARGE, ELECPAYBANKFEE Processing 010, 011",27/09/2019,0140937,112.80,Revenue,Chipside Ltd,22063,,
Chorley Borough Council,http://statistics.data.gov.uk/id/local-authority/30UE,Tourism,1039,Policy & Governance,Miscellaneous Expenses,40200,Miscellaneous Expenses,5034,Contribution towards organisation of the amateur section at Chorley Flower Show,04/09/2019,0140397,600.00,Revenue,Chorley & District Gardening Society,21287,,
Chorley Borough Council,http://statistics.data.gov.uk/id/local-authority/30UE,Community Development,1097,Customer & Digital,Core Funding Grants,40133,Grants and Subscriptions,5031,"Additional Contribution - 13,800",04/09/2019,0139503,"13,800.00",Revenue,Chorley Youth Zone,77339,,
Chorley Borough Council,http://statistics.data.gov.uk/id/local-authority/30UE,Central Support Services,1009,Early Intervention,Children's Activities,40188,Miscellaneous Expenses,5034,"Lancashire Breaktime Respite Care by Inspire Youth Zone, May 2019 Half Term, Total 718.38",18/09/2019,0140778,718.38,Revenue,Chorley Youth Zone,77339,,
Chorley Borough Council,http://statistics.data.gov.uk/id/local-authority/30UE,Central Support Services,1009,Early Intervention,Children's Activities,40188,Miscellaneous Expenses,5034,"Lancs Breaktime respite care delivered by Inspire Youth Zone. May 2019 Term Time, Total 1005.48",18/09/2019,0140779,"1,005.48",Revenue,Chorley Youth Zone,77339,,
Chorley Borough Council,http://statistics.data.gov.uk/id/local-authority/30UE,Central Support Services,1009,Early Intervention,Children's Activities,40188,Miscellaneous Expenses,5034,"Lancashire Breaktime respite care by IYZ, April 2019 Half Term, Total 2791.80",18/09/2019,0140780,"2,791.80",Revenue,Chorley Youth Zone,77339,,
Chorley Borough Council,http://statistics.data.gov.uk/id/local-authority/30UE,Central Support Services,1009,Early Intervention,Children's Activities,40188,Miscellaneous Expenses,5034,"Lancashire Breaktime Respite Care by Inspire Youth Zone, April 2019 Term Time, Total 670.32",18/09/2019,0140781,670.32,Revenue,Chorley Youth Zone,77339,,
Chorley Borough Council,http://statistics.data.gov.uk/id/local-authority/30UE,Homelessness,1075,Early Intervention,Computer Software-Maintenance,40107,Communication and Computing,5028,"Licence, Support & Maintenance 01/10/19 to 30/09/20, Additional charge to Chorley for exceeding Data Storage/Recovery quota",04/09/2019,0140575,"1,211.52",Revenue,Civica UK Limited,17463,,
Chorley Borough Council,http://statistics.data.gov.uk/id/local-authority/30UE,Homelessness,1075,Early Intervention,Computer Software-Maintenance,40107,Communication and Computing,5028,"Licence, Support & Maintenance 01/10/19 to 30/09/20, Hosting, Partner Support, service charge for TA expenditure module ",04/09/2019,0140576,"9,858.51",Revenue,Civica UK Limited,17463,,
Chorley Borough Council,http://statistics.data.gov.uk/id/local-authority/30UE,Unapportionable Central OHeads,1009,Business Development & Growth,General Repairs - Reactive,20004,Repairs Maintenance & Alts,5005,Blanket Reactive,20/09/2019,0140708,"2,208.33",Revenue,Classic Lifts Limited,20897,,
Chorley Borough Council,http://statistics.data.gov.uk/id/local-authority/30UE,Capital,Capital,Business Development & Growth,Main Contractor,03007,Capital Expenditure,Capital,Yarrow Meadows Phase 2 works as in the ITQ and scheme drawings.  Various ecological enhancements and footpath works. ,25/09/2019,0140957,"20,000.00",Capital,Conservation Contracts North West,20520,,
Chorley Borough Council,http://statistics.data.gov.uk/id/local-authority/30UE,Unapportionable Central OHeads,1009,Business Development & Growth,Planned Maintenance,20006,Repairs Maintenance & Alts,5005,PPM blanket,13/09/2019,0140549,"4,805.81",Revenue,Corlett Electrical Eng Co Ltd,16271,,
Chorley Borough Council,http://statistics.data.gov.uk/id/local-authority/30UE,Unapportionable Central OHeads,1009,Business Development & Growth,Planned Maintenance,20006,Repairs Maintenance & Alts,5005,PPM blanket,13/09/2019,0140554,"3,744.92",Revenue,Corlett Electrical Eng Co Ltd,16271,,
Chorley Borough Council,http://statistics.data.gov.uk/id/local-authority/30UE,Homelessness,1075,Business Development & Growth,Gas,20014,Energy Costs,5006,jul - aug 19,06/09/2019,0140476,460.46,Revenue,Corona Energy Retail 2 Ltd,67249,,
Chorley Borough Council,http://statistics.data.gov.uk/id/local-authority/30UE,Democratic Represent and  Mgnt,1007,Business Development & Growth,Gas,20014,Energy Costs,5006,jul-aug19,06/09/2019,0140480,313.96,Revenue,Corona Energy Retail 2 Ltd,67249,,
Chorley Borough Council,http://statistics.data.gov.uk/id/local-authority/30UE,Unapportionable Central OHeads,1009,Business Development & Growth,Gas,20014,Energy Costs,5006,jul - aug 19,06/09/2019,0140496,755.82,Revenue,Corona Energy Retail 2 Ltd,67249,,
Chorley Borough Council,http://statistics.data.gov.uk/id/local-authority/30UE,Central Support Services,1009,Customer & Digital,Miscellaneous Expenses,40200,Miscellaneous Expenses,5034,"Headsets Jabra Evolve 30 @ 29.77 = 5060.90, Plantronics 5210 @ 52.00 = 1560.00, Yealink T58A @ 198.00= 2178.00",11/09/2019,0139297,"8,600.90",Revenue,Corporte Direct (Europe) Ltd (Trading as Corptel),22135,,
Chorley Borough Council,http://statistics.data.gov.uk/id/local-authority/30UE,Capital,Capital,Customer & Digital,Equipment,03014,Capital Expenditure,Capital,"600 X 240 L wheeled bins.  Colour : anthracite Grey, Price per 16:30 (SPLIT DELIVERY of 2 X 300 bins)",04/09/2019,0140544,"4,902.50",Capital,Craemer UK Ltd,64712,,
Chorley Borough Council,http://statistics.data.gov.uk/id/local-authority/30UE,Capital,Capital,Customer & Digital,Equipment,03014,Capital Expenditure,Capital,600 x 240L wheeled bin. Colour :Green Price: 15.30 per unit. To include Chorley Council Logo (SPLIT DELIVERY 2 x 300 bins),04/09/2019,0140545,"4,590.00",Capital,Craemer UK Ltd,64712,,
Chorley Borough Council,http://statistics.data.gov.uk/id/local-authority/30UE,Tourism,1039,Policy & Governance,Professional Fees,40063,Services,5027,Flower Show prize money,04/09/2019,0140399,400.00,Revenue,Craig House Cacti,71499,,
Chorley Borough Council,http://statistics.data.gov.uk/id/local-authority/30UE,Unapportionable Central OHeads,1009,Policy & Governance,Search Fees,40068,Services,5027,Creditsafe standard package - 12 months access,13/09/2019,0139035,"1,600.00",Revenue,Creditsafe Business Solutions Limited,77447,,
Chorley Borough Council,http://statistics.data.gov.uk/id/local-authority/30UE,Business Support,1095,Business Development & Growth,Miscellaneous Expenses,40200,Miscellaneous Expenses,5034,Structural and Civil Engineering Services - Digital Office Park - Chorley,04/09/2019,0140522,"1,500.00",Revenue,Curtins Consulting Engineers,20049,,
Chorley Borough Council,http://statistics.data.gov.uk/id/local-authority/30UE,Capital,Capital,Business Development & Growth,Main Contractor,03007,Capital Expenditure,Capital,"Post season pitch maintenance to King George V Playing Pitches - vertidraining, fertilizer, sand dressing and goal mouth repairs.",13/09/2019,0140616,"7,145.00",Capital,Danvic Turf Care Ltd,16336,,
Chorley Borough Council,http://statistics.data.gov.uk/id/local-authority/30UE,Central Support Services,1009,Customer & Digital,Mobile Voice and Data,40086,Communication and Computing,5028,03 sept 2019,25/09/2019,0140808,"2,071.40",Revenue,EE - Orange,16486,,
Chorley Borough Council,http://statistics.data.gov.uk/id/local-authority/30UE,Unapportionable Central OHeads,1009,Business Development & Growth,Asset Maintenance Fund,20012,Repairs Maintenance & Alts,5005,Initial renovation works to refugee properties x5,11/09/2019,0140075,"3,297.51",Revenue,Ellesmere Engineering Co Ltd,17520,,
Chorley Borough Council,http://statistics.data.gov.uk/id/local-authority/30UE,Capital,Capital,Business Development & Growth,Main Contractor,03007,Capital Expenditure,Capital,Market Walk Extension Contract - Phase 2,13/09/2019,0140711,"759,900.45",Capital,Eric Wright Construction Ltd,76464,,
Chorley Borough Council,http://statistics.data.gov.uk/id/local-authority/30UE,Business Support,1095,Business Development & Growth,Internet Charges,40104,Communication and Computing,5028,"1x  10Gb/s bearer primary circuit installation, 1x  1Gb/s bearer secondary circuit installation",11/09/2019,0139786,"6,050.00",Revenue,Essensys Ltd,77836,,
Chorley Borough Council,http://statistics.data.gov.uk/id/local-authority/30UE,Business Support,1095,Business Development & Growth,Internet Charges,40104,Communication and Computing,5028,"Essensys cloud primary circuit  10Gb/s 30/07/19 to 31/07/19 & 01/08/19 to 31/08/19, Internet 1Gb/s 30/07/19 to 31/07/19",11/09/2019,0139787,"3,193.55",Revenue,Essensys Ltd,77836,,
Chorley Borough Council,http://statistics.data.gov.uk/id/local-authority/30UE,Tourism,1039,Policy & Governance,Professional Fees,40063,Services,5027,prize fee,04/09/2019,0140400,400.00,Revenue,Eversley Nursery,71503,,
Chorley Borough Council,http://statistics.data.gov.uk/id/local-authority/30UE,Unapportionable Central OHeads,1009,Policy & Governance,Legal Fees,40171,Miscellaneous Expenses,5034,Professional fees from 30.719 to 26.8.19,11/09/2019,0140704,971.00,Revenue,Forbes Solicitors,17527,,
Chorley Borough Council,http://statistics.data.gov.uk/id/local-authority/30UE,Democratic Represent and  Mgnt,1007,Policy & Governance,Consultants` Fees,40077,Services,5027,"Strategic Overview of Astley Hall 11555.00, Mileage NAMES REDACTED 405/216 miles. Total 12414.45",04/09/2019,0140469,"9,821.45",Revenue,Geoff W Maybank,64389,,
Chorley Borough Council,http://statistics.data.gov.uk/id/local-authority/30UE,Democratic Represent and  Mgnt,1007,Policy & Governance,Publicity - Advertising,40157,Miscellaneous Expenses,5034,"Replacement Sling, Fabric - White print ready (waterproof, fire & rot resistant), 3m� Full print (1 side) Contact: NAME REDACTED",25/09/2019,0140850,257.00,Revenue,Giant Deckchairs,78103,,
Chorley Borough Council,http://statistics.data.gov.uk/id/local-authority/30UE,Central Support Services,1009,Business Development & Growth,Consultants` Fees,40077,Services,5027,Business Case - Alker Lane - LEP Funding,25/09/2019,0140927,"2,900.00",Revenue,GL Hearn,22437,,
Chorley Borough Council,http://statistics.data.gov.uk/id/local-authority/30UE,Corporate Management,1008,Customer & Digital,Professional Fees,40063,Services,5027,2019-2020 Garden Waste Subscriptions,06/09/2019,0140615,271.63,Revenue,GoCardless,77457,,
Chorley Borough Council,http://statistics.data.gov.uk/id/local-authority/30UE,Corporate Management,1008,Policy & Governance,External Audit,40064,Services,5027,Chorley Council Main Audit Fee 2019-20,13/09/2019,0140748,"8,711.50",Revenue,Grant Thornton UK LLP,57322,,
Chorley Borough Council,http://statistics.data.gov.uk/id/local-authority/30UE,Corporate Management,1008,Policy & Governance,Publicity - Advertising,40157,Miscellaneous Expenses,5034,MW Social Media for September,04/09/2019,0140577,500.00,Revenue,Gravity,77837,,
Chorley Borough Council,http://statistics.data.gov.uk/id/local-authority/30UE,Service Management & Support,1009,Customer & Digital,Supplies-Grounds Maintenance,40025,"Equipment, Furniture & Materia",5023,30 x F14 Mconnell Flails,11/09/2019,0140707,300.00,Revenue,Halse South West Ltd,76890,,
Chorley Borough Council,http://statistics.data.gov.uk/id/local-authority/30UE,Service Management & Support,1009,Customer & Digital,Supplies-Grounds Maintenance,40025,"Equipment, Furniture & Materia",5023,"carriage to: Chorley Council, Bengal Street Depot, Bengal Street, PR7 1SA",11/09/2019,0140707,20.00,Revenue,Halse South West Ltd,76890,,
Chorley Borough Council,http://statistics.data.gov.uk/id/local-authority/30UE,Central Support Services,1009,Business Development & Growth,Operational Employees Salaries,10000,Direct Employee Expenses,5001,Surveyor fees for Property services,25/09/2019,0140461,997.50,Revenue,Hays Senior Finance,20078,,
Chorley Borough Council,http://statistics.data.gov.uk/id/local-authority/30UE,Capital,Capital,Customer & Digital,Other Capital Grants/Loans,03000,Capital Expenditure,Capital,,13/09/2019,0140645,"2,136.17",Capital,Heritage Trust for the North West,77042,,
Chorley Borough Council,http://statistics.data.gov.uk/id/local-authority/30UE,Capital,Capital,Customer & Digital,Other Capital Grants/Loans,03000,Capital Expenditure,Capital,GRANT PAYMENT 22,25/09/2019,0140933,"3,590.00",Capital,Heritage Trust for the North West,77042,,
Chorley Borough Council,http://statistics.data.gov.uk/id/local-authority/30UE,Capital,Capital,Policy & Governance,Hm Land Registry Fees,03023,Capital Expenditure,Capital,TVS Property/HMRC Land Registry Fees,04/09/2019,0140644,458.60,Capital,Hill Dickinson LLP,76460,,
Chorley Borough Council,http://statistics.data.gov.uk/id/local-authority/30UE,Capital,Capital,Policy & Governance,Legal Fees - Acquisition,03019,Capital Expenditure,Capital,TVS Property Purchase/Legal Fees Acquisition,04/09/2019,0140644,"25,000.00",Capital,Hill Dickinson LLP,76460,,
Chorley Borough Council,http://statistics.data.gov.uk/id/local-authority/30UE,Capital,Capital,Policy & Governance,Other Capital Related Fees,03024,Capital Expenditure,Capital,TVS Property Purchase/Other Capital Related receipts,04/09/2019,0140644,3.60,Capital,Hill Dickinson LLP,76460,,
Chorley Borough Council,http://statistics.data.gov.uk/id/local-authority/30UE,Capital,Capital,Policy & Governance,Other Capital Related Fees,03024,Capital Expenditure,Capital,Purchase/Other Capital,04/09/2019,0140644,"1,432.73",Capital,Hill Dickinson LLP,76460,,
Chorley Borough Council,http://statistics.data.gov.uk/id/local-authority/30UE,Business Support,1095,Policy & Governance,Miscellaneous Expenses,40200,Miscellaneous Expenses,5034,CHAPS fee,04/09/2019,0140644,12.00,Revenue,Hill Dickinson LLP,76460,,
Chorley Borough Council,http://statistics.data.gov.uk/id/local-authority/30UE,Capital,Capital,Policy & Governance,Stamp Duty,03026,Capital Expenditure,Capital,Payment of SDLT in connection with the purchase of Logistics House Buckshaw Avenue Chorley Lancashire,04/09/2019,0140258,"1,876,500.00",Capital,HM Revenue & Customs,56499,,
Chorley Borough Council,http://statistics.data.gov.uk/id/local-authority/30UE,Central Support Services,1009,Customer & Digital,IT Software - Annual Licences,40101,Communication and Computing,5028,Veeam Office 365,13/09/2019,0140434,"4,298.28",Revenue,Hybrit LLP,77925,,
Chorley Borough Council,http://statistics.data.gov.uk/id/local-authority/30UE,Corporate Management,1008,Policy & Governance,Other Fees,40212,Miscellaneous Expenses,5034,Subsidy for the provision of a meals on wheels service in Chorley to 18 August 2019,13/09/2019,0140818,"2,005.12",Revenue,I Care GB Ltd,77247,,
Chorley Borough Council,http://statistics.data.gov.uk/id/local-authority/30UE,Elections,1012,Policy & Governance,Training Course Fees,17010,Indirect Employee Expenses,5002,Training for `Atlas` Thursday 11 July 2019 at Chorley Town Hall from NAME REDACTED,25/09/2019,0140928,"1,250.00",Revenue,IDOX Software Limited,17542,,
Chorley Borough Council,http://statistics.data.gov.uk/id/local-authority/30UE,Other Short Term Creditors,,Policy & Governance,General Balances,00100,Balance Sheet,Balance,Income Tax,18/09/2019,0140856,347.60,Revenue,Inland Revenue 065/CH1094A,77147,,
Chorley Borough Council,http://statistics.data.gov.uk/id/local-authority/30UE,Unapportionable Central OHeads,1009,Business Development & Growth,Planned Maintenance,20006,Repairs Maintenance & Alts,5005,Annual Rent for ADDRESS REDACTED,25/09/2019,0140754,"7,218.75",Revenue,J R Keys,17124,,
Chorley Borough Council,http://statistics.data.gov.uk/id/local-authority/30UE,Business Support,1095,Business Development & Growth,Refuse Collection,20037,Cleaning and Domestic Supplies,5012,Waste Compactor Rental Services @ 270 per month for 01 April 2019 - 31 March 2020,04/09/2019,0140547,270.00,Revenue,J&H Rentals Limited,70699,,
Chorley Borough Council,http://statistics.data.gov.uk/id/local-authority/30UE,Business Support,1095,Business Development & Growth,Refuse Collection,20037,Cleaning and Domestic Supplies,5012,Waste Compactor Rental Services @ 270 per month for 01 April 2019 - 31 March 2020,04/09/2019,0140588,270.00,Revenue,J&H Rentals Limited,70699,,
Chorley Borough Council,http://statistics.data.gov.uk/id/local-authority/30UE,Democratic Represent and  Mgnt,1007,Policy & Governance,Exhibitions,40176,Miscellaneous Expenses,5034,"Exhibition rental, delivery and installation - The Way of All Flesh.",25/09/2019,0140773,"1,500.00",Revenue,NAME REDACTED,78161,,
Chorley Borough Council,http://statistics.data.gov.uk/id/local-authority/30UE,Service Management & Support,1009,Customer & Digital,Grounds Maintenance Contractor,20043,Grounds Maintenance Costs,5013,200 of 450mm x 50mm x 50mm pegs,20/09/2019,0140686,90.00,Revenue,John H Mayor & Sons Ltd,16635,,
Chorley Borough Council,http://statistics.data.gov.uk/id/local-authority/30UE,Service Management & Support,1009,Customer & Digital,Grounds Maintenance Contractor,20043,Grounds Maintenance Costs,5013,100 of 1m x 75mm x 75mm birdsmouth posts,20/09/2019,0140686,320.00,Revenue,John H Mayor & Sons Ltd,16635,,
Chorley Borough Council,http://statistics.data.gov.uk/id/local-authority/30UE,Capital,Capital,Business Development & Growth,Main Contractor,03007,Capital Expenditure,Capital,Astley Park Car Park Extension works,27/09/2019,0140859,"1,242.11",Capital,John Wade Groundworks Ltd,76676,,
Chorley Borough Council,http://statistics.data.gov.uk/id/local-authority/30UE,Development Control,1091,Customer & Digital,Statutory Notices,40160,Miscellaneous Expenses,5034,Planning Public Notices to appear in the Chorley Guardian April 2019 to March 2020,04/09/2019,0140541,367.08,Revenue,JPI Media - Johnston Publishing Ltd,20072,,
Chorley Borough Council,http://statistics.data.gov.uk/id/local-authority/30UE,Private Sector HSG Renewal,1073,Early Intervention,Miscellaneous Expenses,40200,Miscellaneous Expenses,5034,ADDRESS REDACTED,13/09/2019,0140800,"2,496.00",Revenue,K Berry Ltd,16421,,
Chorley Borough Council,http://statistics.data.gov.uk/id/local-authority/30UE,Capital,Capital,Early Intervention,Grants,03002,Capital Expenditure,Capital,ADDRESS REDACTED,13/09/2019,0140807,"3,475.00",Capital,K Berry Ltd,16421,,
Chorley Borough Council,http://statistics.data.gov.uk/id/local-authority/30UE,Tourism,1039,Policy & Governance,Professional Fees,40063,Services,5027,Taste of Chorley fee,04/09/2019,0140398,285.00,Revenue,Kay Johnson,78221,,
Chorley Borough Council,http://statistics.data.gov.uk/id/local-authority/30UE,Economic Development,1096,Business Development & Growth,Uniforms,40039,"Clothing, Uniforms and Laundry",5025,"Please supply to Chorley Markets, 1 pair size 7, 1 pair size 9, 6 pair size 10, 1 pair size 11 Blackrock advance SF85 Boots",25/09/2019,0140955,269.55,Revenue,Key Engineering & Hygene Supplies,51615,,
Chorley Borough Council,http://statistics.data.gov.uk/id/local-authority/30UE,Tourism,1039,Policy & Governance,Exhibitions & Special Events,40158,Miscellaneous Expenses,5034,"Photography and videography at event, Reference 1265",25/09/2019,0140975,500.00,Revenue,KR Public Relations Limited,78009,,
Chorley Borough Council,http://statistics.data.gov.uk/id/local-authority/30UE,Control Accounts,Control,Policy & Governance,General Balances,00100,Balance Sheet,Balance,monthly Deds from Expenses,18/09/2019,0140861,"1,407.62",Revenue,Labour Councillors Association,17577,,
Chorley Borough Council,http://statistics.data.gov.uk/id/local-authority/30UE,Capital,Capital,Early Intervention,Grants,03002,Capital Expenditure,Capital,18/00222/DFG NAME REDACTED - ADDRESS REDACTED,04/09/2019,0140229,"3,195.04",Capital,Lancashire County Council,17758,,
Chorley Borough Council,http://statistics.data.gov.uk/id/local-authority/30UE,Capital,Capital,Early Intervention,Grants,03002,Capital Expenditure,Capital,ADDRESS REDACTED,13/09/2019,0140805,"7,693.00",Capital,Lancashire County Council,17758,,
Chorley Borough Council,http://statistics.data.gov.uk/id/local-authority/30UE,Parking Services,1066,Business Development & Growth,Miscellaneous Expenses,40200,Miscellaneous Expenses,5034,FAO NAME REDACTED. Re: St Mary`s Car Park Repairs Col 1: 2 x 250w Son-t Lamp @ 14.78 each,25/09/2019,0140899,29.56,Revenue,Lancashire County Council,20027,,
Chorley Borough Council,http://statistics.data.gov.uk/id/local-authority/30UE,Parking Services,1066,Business Development & Growth,Miscellaneous Expenses,40200,Miscellaneous Expenses,5034,Col 1: 1 x SS3 photocell @ 11.16 each,25/09/2019,0140899,11.16,Revenue,Lancashire County Council,20027,,
Chorley Borough Council,http://statistics.data.gov.uk/id/local-authority/30UE,Parking Services,1066,Business Development & Growth,Miscellaneous Expenses,40200,Miscellaneous Expenses,5034,Col 1: 2 x 100-400w Ignitors @ 24.99 each,25/09/2019,0140899,49.98,Revenue,Lancashire County Council,20027,,
Chorley Borough Council,http://statistics.data.gov.uk/id/local-authority/30UE,Parking Services,1066,Business Development & Growth,Miscellaneous Expenses,40200,Miscellaneous Expenses,5034,Col 2: 2 x 250w Son-t lamp @ 14.78 each,25/09/2019,0140899,29.56,Revenue,Lancashire County Council,20027,,
Chorley Borough Council,http://statistics.data.gov.uk/id/local-authority/30UE,Parking Services,1066,Business Development & Growth,Miscellaneous Expenses,40200,Miscellaneous Expenses,5034,Col 2: 2 x 100-400w Ignitors @ 24.99 each,25/09/2019,0140899,49.98,Revenue,Lancashire County Council,20027,,
Chorley Borough Council,http://statistics.data.gov.uk/id/local-authority/30UE,Parking Services,1066,Business Development & Growth,Miscellaneous Expenses,40200,Miscellaneous Expenses,5034,3 hrs electrician and 12 mtr access Mewp (out of hours) @ 79.61 p/h,25/09/2019,0140899,238.83,Revenue,Lancashire County Council,20027,,
Chorley Borough Council,http://statistics.data.gov.uk/id/local-authority/30UE,Capital,Capital,Early Intervention,Grants,03002,Capital Expenditure,Capital,ADDRESS REDACTED,20/09/2019,0140931,"6,461.91",Capital,Lancashire County Council,17758,,
Chorley Borough Council,http://statistics.data.gov.uk/id/local-authority/30UE,Central Support Services,1009,Policy & Governance,Car Leasing Payment,14100,Direct Employee Expenses,5001,VIN REDACTED,04/09/2019,0140287,"2,624.85",Revenue,LeasePlan UK Ltd T/A Automotive Leasing,65197,,
Chorley Borough Council,http://statistics.data.gov.uk/id/local-authority/30UE,Central Support Services,1009,Policy & Governance,Car Leasing Payment,14100,Direct Employee Expenses,5001,vat,04/09/2019,0140287,217.61,Revenue,LeasePlan UK Ltd T/A Automotive Leasing,65197,,
Chorley Borough Council,http://statistics.data.gov.uk/id/local-authority/30UE,Unapportionable Central OHeads,1009,Policy & Governance,Car Leasing Payment,14100,Direct Employee Expenses,5001,VIN REDACTED,04/09/2019,0140288,"3,239.69",Revenue,LeasePlan UK Ltd T/A Automotive Leasing,65197,,
Chorley Borough Council,http://statistics.data.gov.uk/id/local-authority/30UE,Unapportionable Central OHeads,1009,Policy & Governance,Car Leasing Payment,14100,Direct Employee Expenses,5001,vat,04/09/2019,0140288,295.65,Revenue,LeasePlan UK Ltd T/A Automotive Leasing,65197,,
Chorley Borough Council,http://statistics.data.gov.uk/id/local-authority/30UE,Development Control,1091,Policy & Governance,Car Leasing Payment,14100,Direct Employee Expenses,5001,VIN REDACTED,04/09/2019,0140289,257.13,Revenue,LeasePlan UK Ltd T/A Automotive Leasing,65197,,
Chorley Borough Council,http://statistics.data.gov.uk/id/local-authority/30UE,Development Control,1091,Policy & Governance,Car Leasing Payment,14100,Direct Employee Expenses,5001,vat,04/09/2019,0140289,21.97,Revenue,LeasePlan UK Ltd T/A Automotive Leasing,65197,,
Chorley Borough Council,http://statistics.data.gov.uk/id/local-authority/30UE,Corporate Management,1008,Policy & Governance,Car Leasing Payment,14100,Direct Employee Expenses,5001,VIN REDACTED NAME REDACTED,04/09/2019,0140294,280.86,Revenue,LeasePlan UK Ltd T/A Automotive Leasing,65197,,
Chorley Borough Council,http://statistics.data.gov.uk/id/local-authority/30UE,Corporate Management,1008,Policy & Governance,Car Leasing Payment,14100,Direct Employee Expenses,5001,vat,04/09/2019,0140294,25.02,Revenue,LeasePlan UK Ltd T/A Automotive Leasing,65197,,
Chorley Borough Council,http://statistics.data.gov.uk/id/local-authority/30UE,Corporate Management,1008,Policy & Governance,Car Leasing Payment,14100,Direct Employee Expenses,5001,VIN REDACTED NAME REDACTED,04/09/2019,0140369,280.86,Revenue,LeasePlan UK Ltd T/A Automotive Leasing,65197,,
Chorley Borough Council,http://statistics.data.gov.uk/id/local-authority/30UE,Corporate Management,1008,Policy & Governance,Car Leasing Payment,14100,Direct Employee Expenses,5001,vat,04/09/2019,0140369,25.02,Revenue,LeasePlan UK Ltd T/A Automotive Leasing,65197,,
Chorley Borough Council,http://statistics.data.gov.uk/id/local-authority/30UE,Unapportionable Central OHeads,1009,Policy & Governance,Car Leasing Payment,14100,Direct Employee Expenses,5001,VIN REDACTED,04/09/2019,0140370,"2,257.15",Revenue,LeasePlan UK Ltd T/A Automotive Leasing,65197,,
Chorley Borough Council,http://statistics.data.gov.uk/id/local-authority/30UE,Unapportionable Central OHeads,1009,Policy & Governance,Car Leasing Payment,14100,Direct Employee Expenses,5001,vat,04/09/2019,0140370,214.20,Revenue,LeasePlan UK Ltd T/A Automotive Leasing,65197,,
Chorley Borough Council,http://statistics.data.gov.uk/id/local-authority/30UE,Central Support Services,1009,Policy & Governance,Car Leasing Payment,14100,Direct Employee Expenses,5001,"NAME REDACTED Mini Cooper 1.5 Sport ll 5 Dr+Nav Pack, Midnight Black metallic Black Alloy wheels, 3 Years, 1",25/09/2019,0140945,"2,435.27",Revenue,LeasePlan UK Ltd T/A Automotive Leasing,65197,,
Chorley Borough Council,http://statistics.data.gov.uk/id/local-authority/30UE,Unapportionable Central OHeads,1009,Customer & Digital,Professional Fees,40063,Services,5027,Empty Homes Review 2019,04/09/2019,0138481,"2,829.16",Revenue,Liberata (Capacity Grid),67989,,
Chorley Borough Council,http://statistics.data.gov.uk/id/local-authority/30UE,Community Development,1097,Policy & Governance,Grants To Other Organisations,40127,Grants and Subscriptions,5031,Support for the Living Waters Storehouse food provision contract,06/09/2019,0140646,"7,500.00",Revenue,Living Waters Storehouse,60925,,
Chorley Borough Council,http://statistics.data.gov.uk/id/local-authority/30UE,Central Support Services,1009,Policy & Governance,Car Leasing Payment,14100,Direct Employee Expenses,5001,"NAME REDACTED Kia Niro 1.6 GDi Hybrid 2 5Dr DCT, Metallic - Runway Red, 3 Years x 12,000, 86 g/km, Estate, Automatic",18/09/2019,0140795,"2,674.56",Revenue,Lookers Leasing Limited,78157,,
Chorley Borough Council,http://statistics.data.gov.uk/id/local-authority/30UE,Corporate Management,1008,Policy & Governance,Exhibitions & Special Events,40158,Miscellaneous Expenses,5034,Performances on Market Walk,04/09/2019,0140281,"1,000.00",Revenue,Louby Lou Ltd,76335,,
Chorley Borough Council,http://statistics.data.gov.uk/id/local-authority/30UE,Capital,Capital,Early Intervention,Grants,03002,Capital Expenditure,Capital,,13/09/2019,0140804,"5,180.00",Capital,M.J Park Building Contractors,20367,,
Chorley Borough Council,http://statistics.data.gov.uk/id/local-authority/30UE,Parking Services,1066,Business Development & Growth,Salting & Gritting,20059,Grounds Maintenance Costs,5013,3 x pallets of salt free non-corrosive de-icer (40x25kgs)  850 per pallet ,27/09/2019,0140993,"2,550.00",Revenue,Maclin Sourcing Solutions Ltd,78066,,
Chorley Borough Council,http://statistics.data.gov.uk/id/local-authority/30UE,Unapportionable Central OHeads,1009,Policy & Governance,Agency Staff,13000,Direct Employee Expenses,5001,NAME REDACTED,11/09/2019,0140685,742.68,Revenue,Matrix SCM Ltd,22128,,
Chorley Borough Council,http://statistics.data.gov.uk/id/local-authority/30UE,Central Support Services,1009,Policy & Governance,Agency Staff,13000,Direct Employee Expenses,5001,NAME REDACTED,11/09/2019,0140685,15.91,Revenue,Matrix SCM Ltd,22128,,
Chorley Borough Council,http://statistics.data.gov.uk/id/local-authority/30UE,Central Support Services,1009,Policy & Governance,Agency Staff,13000,Direct Employee Expenses,5001,NAME REDACTED,11/09/2019,0140685,602.26,Revenue,Matrix SCM Ltd,22128,,
Chorley Borough Council,http://statistics.data.gov.uk/id/local-authority/30UE,Unapportionable Central OHeads,1009,Policy & Governance,Agency Staff,13000,Direct Employee Expenses,5001,NAME REDACTED,25/09/2019,0140788,742.69,Revenue,Matrix SCM Ltd,22128,,
Chorley Borough Council,http://statistics.data.gov.uk/id/local-authority/30UE,Unapportionable Central OHeads,1009,Policy & Governance,Agency Staff,13000,Direct Employee Expenses,5001,NAME REDACTED,25/09/2019,0140958,742.70,Revenue,Matrix SCM Ltd,22128,,
Chorley Borough Council,http://statistics.data.gov.uk/id/local-authority/30UE,Central Support Services,1009,Policy & Governance,Agency Staff,13000,Direct Employee Expenses,5001,NAME REDACTED,25/09/2019,0140958,"1,003.77",Revenue,Matrix SCM Ltd,22128,,
Chorley Borough Council,http://statistics.data.gov.uk/id/local-authority/30UE,Corporate Management,1008,Policy & Governance,Corp Training Organisational Development,17006,Indirect Employee Expenses,5002,Workplace Fire Extinguisher Training on 27/09/19 and 03/10/19 at Bengal Street Depot,20/09/2019,0140819,970.00,Revenue,Merseyside Fire & Rescue Service,70840,,
Chorley Borough Council,http://statistics.data.gov.uk/id/local-authority/30UE,Unapportionable Central OHeads,1009,Policy & Governance,Agency Staff,13000,Direct Employee Expenses,5001,Recruitment to temporary Management Accountant post,04/09/2019,0140433,739.73,Revenue,Michael Page International Limted,78006,,
Chorley Borough Council,http://statistics.data.gov.uk/id/local-authority/30UE,Unapportionable Central OHeads,1009,Policy & Governance,Agency Staff,13000,Direct Employee Expenses,5001,Recruitment to temporary Management Accountant post,04/09/2019,0140607,752.38,Revenue,Michael Page International Limted,78006,,
Chorley Borough Council,http://statistics.data.gov.uk/id/local-authority/30UE,Unapportionable Central OHeads,1009,Policy & Governance,Agency Staff,13000,Direct Employee Expenses,5001,Recruitment to temporary Management Accountant post,16/09/2019,0140746,777.67,Revenue,Michael Page International Limted,78006,,
Chorley Borough Council,http://statistics.data.gov.uk/id/local-authority/30UE,Unapportionable Central OHeads,1009,Policy & Governance,Agency Staff,13000,Direct Employee Expenses,5001,Recruitment to temporary Management Accountant post,25/09/2019,0140864,891.47,Revenue,Michael Page International Limted,78006,,
Chorley Borough Council,http://statistics.data.gov.uk/id/local-authority/30UE,Capital,Capital,Early Intervention,Grants,03002,Capital Expenditure,Capital,ADDRESS REDACTED,11/09/2019,0140684,"2,086.72",Capital,Mint Northwest Ltd,65607,,
Chorley Borough Council,http://statistics.data.gov.uk/id/local-authority/30UE,Private Sector HSG Renewal,1073,Early Intervention,External Contractor,40198,Miscellaneous Expenses,5034,Ref 2352,18/09/2019,0140724,184.00,Revenue,Mobility Care Services,70841,,
Chorley Borough Council,http://statistics.data.gov.uk/id/local-authority/30UE,Private Sector HSG Renewal,1073,Early Intervention,External Contractor,40198,Miscellaneous Expenses,5034,Ref 2353,18/09/2019,0140724,66.00,Revenue,Mobility Care Services,70841,,
Chorley Borough Council,http://statistics.data.gov.uk/id/local-authority/30UE,Private Sector HSG Renewal,1073,Early Intervention,External Contractor,40198,Miscellaneous Expenses,5034,Ref 2359,18/09/2019,0140724,256.00,Revenue,Mobility Care Services,70841,,
Chorley Borough Council,http://statistics.data.gov.uk/id/local-authority/30UE,Private Sector HSG Renewal,1073,Early Intervention,External Contractor,40198,Miscellaneous Expenses,5034,Ref 2360,18/09/2019,0140724,111.00,Revenue,Mobility Care Services,70841,,
Chorley Borough Council,http://statistics.data.gov.uk/id/local-authority/30UE,Private Sector HSG Renewal,1073,Early Intervention,External Contractor,40198,Miscellaneous Expenses,5034,Ref 2354,18/09/2019,0140724,66.00,Revenue,Mobility Care Services,70841,,
Chorley Borough Council,http://statistics.data.gov.uk/id/local-authority/30UE,Private Sector HSG Renewal,1073,Early Intervention,External Contractor,40198,Miscellaneous Expenses,5034,Ref 2361,18/09/2019,0140724,111.00,Revenue,Mobility Care Services,70841,,
Chorley Borough Council,http://statistics.data.gov.uk/id/local-authority/30UE,Private Sector HSG Renewal,1073,Early Intervention,External Contractor,40198,Miscellaneous Expenses,5034,Ref 2362,18/09/2019,0140724,128.00,Revenue,Mobility Care Services,70841,,
Chorley Borough Council,http://statistics.data.gov.uk/id/local-authority/30UE,Private Sector HSG Renewal,1073,Early Intervention,External Contractor,40198,Miscellaneous Expenses,5034,Ref 2370,18/09/2019,0140724,256.00,Revenue,Mobility Care Services,70841,,
Chorley Borough Council,http://statistics.data.gov.uk/id/local-authority/30UE,Private Sector HSG Renewal,1073,Early Intervention,External Contractor,40198,Miscellaneous Expenses,5034,Ref 2371,18/09/2019,0140724,111.00,Revenue,Mobility Care Services,70841,,
Chorley Borough Council,http://statistics.data.gov.uk/id/local-authority/30UE,Private Sector HSG Renewal,1073,Early Intervention,External Contractor,40198,Miscellaneous Expenses,5034,Ref 2364,18/09/2019,0140724,360.00,Revenue,Mobility Care Services,70841,,
Chorley Borough Council,http://statistics.data.gov.uk/id/local-authority/30UE,Private Sector HSG Renewal,1073,Early Intervention,External Contractor,40198,Miscellaneous Expenses,5034,Ref 2372,18/09/2019,0140724,128.00,Revenue,Mobility Care Services,70841,,
Chorley Borough Council,http://statistics.data.gov.uk/id/local-authority/30UE,Private Sector HSG Renewal,1073,Early Intervention,External Contractor,40198,Miscellaneous Expenses,5034,Ref 2373,18/09/2019,0140724,111.00,Revenue,Mobility Care Services,70841,,
Chorley Borough Council,http://statistics.data.gov.uk/id/local-authority/30UE,Private Sector HSG Renewal,1073,Early Intervention,External Contractor,40198,Miscellaneous Expenses,5034,Ref 2374,18/09/2019,0140724,111.00,Revenue,Mobility Care Services,70841,,
Chorley Borough Council,http://statistics.data.gov.uk/id/local-authority/30UE,Private Sector HSG Renewal,1073,Early Intervention,External Contractor,40198,Miscellaneous Expenses,5034,Ref 2375,18/09/2019,0140724,128.00,Revenue,Mobility Care Services,70841,,
Chorley Borough Council,http://statistics.data.gov.uk/id/local-authority/30UE,Private Sector HSG Renewal,1073,Early Intervention,External Contractor,40198,Miscellaneous Expenses,5034,Ref 2376,18/09/2019,0140724,256.00,Revenue,Mobility Care Services,70841,,
Chorley Borough Council,http://statistics.data.gov.uk/id/local-authority/30UE,Private Sector HSG Renewal,1073,Early Intervention,External Contractor,40198,Miscellaneous Expenses,5034,Ref 2377,18/09/2019,0140724,111.00,Revenue,Mobility Care Services,70841,,
Chorley Borough Council,http://statistics.data.gov.uk/id/local-authority/30UE,Private Sector HSG Renewal,1073,Early Intervention,External Contractor,40198,Miscellaneous Expenses,5034,Ref 2378,18/09/2019,0140724,111.00,Revenue,Mobility Care Services,70841,,
Chorley Borough Council,http://statistics.data.gov.uk/id/local-authority/30UE,Private Sector HSG Renewal,1073,Early Intervention,External Contractor,40198,Miscellaneous Expenses,5034,Ref 2389,18/09/2019,0140724,66.00,Revenue,Mobility Care Services,70841,,
Chorley Borough Council,http://statistics.data.gov.uk/id/local-authority/30UE,Private Sector HSG Renewal,1073,Early Intervention,External Contractor,40198,Miscellaneous Expenses,5034,Ref 2390,18/09/2019,0140724,128.00,Revenue,Mobility Care Services,70841,,
Chorley Borough Council,http://statistics.data.gov.uk/id/local-authority/30UE,Private Sector HSG Renewal,1073,Early Intervention,External Contractor,40198,Miscellaneous Expenses,5034,Ref 2259,18/09/2019,0140724,198.00,Revenue,Mobility Care Services,70841,,
Chorley Borough Council,http://statistics.data.gov.uk/id/local-authority/30UE,Private Sector HSG Renewal,1073,Early Intervention,External Contractor,40198,Miscellaneous Expenses,5034,Ref 2260,18/09/2019,0140724,66.00,Revenue,Mobility Care Services,70841,,
Chorley Borough Council,http://statistics.data.gov.uk/id/local-authority/30UE,Private Sector HSG Renewal,1073,Early Intervention,External Contractor,40198,Miscellaneous Expenses,5034,Ref 2261,18/09/2019,0140724,66.00,Revenue,Mobility Care Services,70841,,
Chorley Borough Council,http://statistics.data.gov.uk/id/local-authority/30UE,Private Sector HSG Renewal,1073,Early Intervention,External Contractor,40198,Miscellaneous Expenses,5034,Ref 2409,18/09/2019,0140724,66.00,Revenue,Mobility Care Services,70841,,
Chorley Borough Council,http://statistics.data.gov.uk/id/local-authority/30UE,Private Sector HSG Renewal,1073,Early Intervention,External Contractor,40198,Miscellaneous Expenses,5034,Ref 2408,18/09/2019,0140724,256.00,Revenue,Mobility Care Services,70841,,
Chorley Borough Council,http://statistics.data.gov.uk/id/local-authority/30UE,Private Sector HSG Renewal,1073,Early Intervention,External Contractor,40198,Miscellaneous Expenses,5034,Ref 2407,18/09/2019,0140724,128.00,Revenue,Mobility Care Services,70841,,
Chorley Borough Council,http://statistics.data.gov.uk/id/local-authority/30UE,Private Sector HSG Renewal,1073,Early Intervention,External Contractor,40198,Miscellaneous Expenses,5034,Ref 2415,18/09/2019,0140724,128.00,Revenue,Mobility Care Services,70841,,
Chorley Borough Council,http://statistics.data.gov.uk/id/local-authority/30UE,Private Sector HSG Renewal,1073,Early Intervention,External Contractor,40198,Miscellaneous Expenses,5034,Ref 2416,18/09/2019,0140724,111.00,Revenue,Mobility Care Services,70841,,
Chorley Borough Council,http://statistics.data.gov.uk/id/local-authority/30UE,Private Sector HSG Renewal,1073,Early Intervention,External Contractor,40198,Miscellaneous Expenses,5034,Ref 2417,18/09/2019,0140724,222.00,Revenue,Mobility Care Services,70841,,
Chorley Borough Council,http://statistics.data.gov.uk/id/local-authority/30UE,Private Sector HSG Renewal,1073,Early Intervention,External Contractor,40198,Miscellaneous Expenses,5034,Ref 2418,18/09/2019,0140724,111.00,Revenue,Mobility Care Services,70841,,
Chorley Borough Council,http://statistics.data.gov.uk/id/local-authority/30UE,Private Sector HSG Renewal,1073,Early Intervention,External Contractor,40198,Miscellaneous Expenses,5034,Ref 2427,18/09/2019,0140724,128.00,Revenue,Mobility Care Services,70841,,
Chorley Borough Council,http://statistics.data.gov.uk/id/local-authority/30UE,Private Sector HSG Renewal,1073,Early Intervention,External Contractor,40198,Miscellaneous Expenses,5034,Ref 2429,18/09/2019,0140724,66.00,Revenue,Mobility Care Services,70841,,
Chorley Borough Council,http://statistics.data.gov.uk/id/local-authority/30UE,Private Sector HSG Renewal,1073,Early Intervention,External Contractor,40198,Miscellaneous Expenses,5034,Ref 2430,18/09/2019,0140724,66.00,Revenue,Mobility Care Services,70841,,
Chorley Borough Council,http://statistics.data.gov.uk/id/local-authority/30UE,Private Sector HSG Renewal,1073,Early Intervention,External Contractor,40198,Miscellaneous Expenses,5034,Ref 2431,18/09/2019,0140724,66.00,Revenue,Mobility Care Services,70841,,
Chorley Borough Council,http://statistics.data.gov.uk/id/local-authority/30UE,Private Sector HSG Renewal,1073,Early Intervention,External Contractor,40198,Miscellaneous Expenses,5034,Ref 2432,18/09/2019,0140724,980.00,Revenue,Mobility Care Services,70841,,
Chorley Borough Council,http://statistics.data.gov.uk/id/local-authority/30UE,Capital,Capital,Early Intervention,Grants,03002,Capital Expenditure,Capital,18/00021/DFG NAME REDACTED,04/09/2019,0140635,"1,610.00",Capital,NAME REDACTED,78230,,
Chorley Borough Council,http://statistics.data.gov.uk/id/local-authority/30UE,Unapportionable Central OHeads,1009,Policy & Governance,Exhibitions & Special Events,40158,Miscellaneous Expenses,5034,"12000 Silicone Wristbands, Colour - Print Whitec - Size:210mm x 12mm x 2mm Text: Chorley Live 2019 chorleylive.com",04/09/2019,0139874,"1,560.00",Revenue,Munco International T/A Adband,60837,,
Chorley Borough Council,http://statistics.data.gov.uk/id/local-authority/30UE,Private Sector HSG Renewal,1073,Early Intervention,Stationery,40050,"Printing, Stationery & General",5026,Adaptation Service Wallet Folders (500no),04/09/2019,0140393,849.00,Revenue,N B Colour Print Ltd,17917,,
Chorley Borough Council,http://statistics.data.gov.uk/id/local-authority/30UE,Tourism,1039,Policy & Governance,Professional Fees,40063,Services,5027,prize 2019,04/09/2019,0140401,300.00,Revenue,National Begonia Society,76965,,
Chorley Borough Council,http://statistics.data.gov.uk/id/local-authority/30UE,Unapportionable Central OHeads,1009,Chief Executive,Postages,40082,Communication and Computing,5028,Annual support on NFS330 - Serial Number: NE8002360/ DA1243567448 and NFS330 2 kg scale from Oct 2019 to Sept 2020,27/09/2019,0140936,410.00,Revenue,Nationwide Franking Sense,22546,,
Chorley Borough Council,http://statistics.data.gov.uk/id/local-authority/30UE,Corporate Management,1008,Customer & Digital,"Hackney Badges, Plates Etc.",40023,"Equipment, Furniture & Materia",5023,Private Hire door signs to include tamper evident hologram and cover  x40 @ 6.88 each,04/09/2019,0140374,275.20,Revenue,NewAuto Ltd t/a MOGO UK,17187,,
Chorley Borough Council,http://statistics.data.gov.uk/id/local-authority/30UE,Corporate Management,1008,Customer & Digital,"Hackney Badges, Plates Etc.",40023,"Equipment, Furniture & Materia",5023,Postage & packing,04/09/2019,0140374,14.90,Revenue,NewAuto Ltd t/a MOGO UK,17187,,
Chorley Borough Council,http://statistics.data.gov.uk/id/local-authority/30UE,Capital,Capital,Customer & Digital,Other Capital Grants/Loans,03000,Capital Expenditure,Capital,GRANT 21,20/09/2019,0140669,"66,629.19",Capital,Next Big Thing Developments,77044,,
Chorley Borough Council,http://statistics.data.gov.uk/id/local-authority/30UE,Capital,Capital,Customer & Digital,Other Capital Grants/Loans,03000,Capital Expenditure,Capital,GRANT 22,25/09/2019,0140964,"66,335.17",Capital,Next Big Thing Developments,77044,,
Chorley Borough Council,http://statistics.data.gov.uk/id/local-authority/30UE,Central Support Services,1009,Business Development & Growth,Consultants` Fees,40077,Services,5027,sub-consultant through HIVE for Alker Lane works - planning,06/09/2019,0139137,"1,382.00",Revenue,Nexus Planning Ltd,77421,,
Chorley Borough Council,http://statistics.data.gov.uk/id/local-authority/30UE,Service Management & Support,1009,Customer & Digital,Vehicles and Plant Operating Lease,30029,Contrct Hire & Operating Lease,5018,Agreement No 2200452987- re vehicle VIN REDACTED,04/09/2019,0140444,"2,108.72",Revenue,Nissan Finance,76251,,
Chorley Borough Council,http://statistics.data.gov.uk/id/local-authority/30UE,Service Management & Support,1009,Customer & Digital,Vehicles and Plant Operating Lease,30029,Contrct Hire & Operating Lease,5018,Agreement number- 2200452959 re vehicle VIN REDACTED,04/09/2019,0140445,"2,108.72",Revenue,Nissan Finance,76251,,
Chorley Borough Council,http://statistics.data.gov.uk/id/local-authority/30UE,Unapportionable Central OHeads,1009,Chief Executive,Stationery,40050,"Printing, Stationery & General",5026,Newspapers delivered to Union Street - April 2019 - 31 May 2020,27/09/2019,0140787,359.46,Revenue,Nooze `n` Booze,19382,,
Chorley Borough Council,http://statistics.data.gov.uk/id/local-authority/30UE,Tourism,1039,Policy & Governance,Professional Fees,40063,Services,5027,prize 2019,04/09/2019,0140402,300.00,Revenue,North West Cottage Garden Society,77590,,
Chorley Borough Council,http://statistics.data.gov.uk/id/local-authority/30UE,Unapportionable Central OHeads,1009,Policy & Governance,Laundry,40042,"Clothing, Uniforms and Laundry",5025,Table linens and tea towels laundered and pressed.  Invoice includes an extra 20 for next to week ending 10th August 2019,04/09/2019,0140540,676.50,Revenue,North West Ironing & Laundry Centre,20450,,
Chorley Borough Council,http://statistics.data.gov.uk/id/local-authority/30UE,Parking Services,1066,Business Development & Growth,External Contractors,50008,Private Contractors,5042,"Off street car park enforcement, cash collection, cash counting and third party bulk cash collections for 01.04.19 - 31.03.20",06/09/2019,0140592,"4,825.43",Revenue,NSL Limited,67253,,
Chorley Borough Council,http://statistics.data.gov.uk/id/local-authority/30UE,Corporate Management,1008,Chief Executive,Corp Training Organisational Development,17006,Indirect Employee Expenses,5002,Senior Manager Interview Preparation Training,11/09/2019,0140532,850.00,Revenue,Nwlaeo,17571,,
Chorley Borough Council,http://statistics.data.gov.uk/id/local-authority/30UE,Economic Development,1096,Business Development & Growth,Cleaning Materials,40019,"Equipment, Furniture & Materia",5023,Please supply toiletries as per e-mail,20/09/2019,0140942,416.25,Revenue,Pattersons Holdings (Bristol),77537,,
Chorley Borough Council,http://statistics.data.gov.uk/id/local-authority/30UE,Unapportionable Central OHeads,1009,Business Development & Growth,Planned Maintenance,20006,Repairs Maintenance & Alts,5005,Fencing as discussed with NAME REDACTED at Eaves Green,27/09/2019,0140996,"5,150.97",Revenue,Peerless Fencing Limited,78148,,
Chorley Borough Council,http://statistics.data.gov.uk/id/local-authority/30UE,Capital,Capital,Business Development & Growth,Other Capital Related Fees,03024,Capital Expenditure,Capital,Clerk of Works services for Primrose Gardens,04/09/2019,0140586,"8,264.85",Capital,Perfect Circle JV Ltd,76438,,
Chorley Borough Council,http://statistics.data.gov.uk/id/local-authority/30UE,Capital,Capital,Business Development & Growth,Consultants Fees,03025,Capital Expenditure,Capital,PM support for the King George V project,04/09/2019,0140589,"3,682.22",Capital,Perfect Circle JV Ltd,76438,,
Chorley Borough Council,http://statistics.data.gov.uk/id/local-authority/30UE,Capital,Capital,Business Development & Growth,Consultants Fees,03025,Capital Expenditure,Capital,Provision of Clerk Of Works services for the Market Walk Extension April/May 19 Building Surveying & Mechanical & Electrical ,06/09/2019,0140596,"9,530.85",Capital,Perfect Circle JV Ltd,76438,,
Chorley Borough Council,http://statistics.data.gov.uk/id/local-authority/30UE,Capital,Capital,Business Development & Growth,Consultants Fees,03025,Capital Expenditure,Capital,Provision of Clerk Of Works services for the Market Walk Extension April/May 19 Building Surveying & Mechanical & Electrical ,25/09/2019,0140678,"7,040.64",Capital,Perfect Circle JV Ltd,76438,,
Chorley Borough Council,http://statistics.data.gov.uk/id/local-authority/30UE,Central Support Services,1009,Business Development & Growth,Professional Fees,40063,Services,5027,Valuation Report in respect of ADDRESS REDACTED,04/09/2019,0140309,"1,134.00",Revenue,Peter E Gilkes & Co,17634,,
Chorley Borough Council,http://statistics.data.gov.uk/id/local-authority/30UE,Central Support Services,1009,Early Intervention,Pest Control,20039,Cleaning and Domestic Supplies,5012,"4x Incomplete invoices 2060, 2059, 2058, 0002061",04/09/2019,0140425,390.00,Revenue,Peter L Johnson,16727,,
Chorley Borough Council,http://statistics.data.gov.uk/id/local-authority/30UE,Central Support Services,1009,Early Intervention,Pest Control,20039,Cleaning and Domestic Supplies,5012,Pest Control Interventions/Treatment,06/09/2019,0140539,292.50,Revenue,Peter L Johnson,16727,,
Chorley Borough Council,http://statistics.data.gov.uk/id/local-authority/30UE,Central Support Services,1009,Early Intervention,Pest Control,20039,Cleaning and Domestic Supplies,5012,Pest Control Interventions/Treatment,27/09/2019,0140913,390.00,Revenue,Peter L Johnson,16727,,
Chorley Borough Council,http://statistics.data.gov.uk/id/local-authority/30UE,Tourism,1039,Policy & Governance,Publicity - Advertising,40157,Miscellaneous Expenses,5034,"Batch of 8 mesh banners - single Heras fence panel size, 4x Chorley Flower Show, 4x Check out Chorley, REF12780/1",04/09/2019,0140448,966.26,Revenue,Poppy Signs Ltd,21898,,
Chorley Borough Council,http://statistics.data.gov.uk/id/local-authority/30UE,Capital,Capital,Business Development & Growth,Other Expenses,03030,Capital Expenditure,Capital,Ackhurst Car Park Signs and branding. Quote Ref 12781/1,13/09/2019,0140677,"3,151.43",Capital,Poppy Signs Ltd,21898,,
Chorley Borough Council,http://statistics.data.gov.uk/id/local-authority/30UE,Elections,1012,Policy & Governance,Printing,40043,"Printing, Stationery & General",5026,"2019 HEF mailings plus return envelopes, leaflet - printing initial run",25/09/2019,0140971,"9,274.72",Revenue,Print Image Network,21171,,
Chorley Borough Council,http://statistics.data.gov.uk/id/local-authority/30UE,Homelessness,1075,Early Intervention,`Professional Fees,14011,Direct Employee Expenses,5001,Control Centre Monitoring  (Homeless out of hours service) from 01.04.2019 - 31.03.2020,04/09/2019,0140529,"4,147.11",Revenue,Progress Housing Group,64340,,
Chorley Borough Council,http://statistics.data.gov.uk/id/local-authority/30UE,Other Short Term Creditors,,Policy & Governance,General Balances,00100,Balance Sheet,Balance,Salary deductions,11/09/2019,0140416,"2,071.50",Revenue,PRUDENTIAL,18178,,
Chorley Borough Council,http://statistics.data.gov.uk/id/local-authority/30UE,Other Short Term Creditors,,Policy & Governance,General Balances,00100,Balance Sheet,Balance,,18/09/2019,0140860,"2,071.50",Revenue,PRUDENTIAL,18178,,
Chorley Borough Council,http://statistics.data.gov.uk/id/local-authority/30UE,Homelessness,1075,Early Intervention,Miscellaneous Expenses,40200,Miscellaneous Expenses,5034,Hire of a 55 seater on Wednesday 28th August from Astley Village Community Centre to Blackpool and return,04/09/2019,0140583,525.00,Revenue,R S Tyrer Ltd,16255,,
Chorley Borough Council,http://statistics.data.gov.uk/id/local-authority/30UE,Business Support,1095,Business Development & Growth,Miscellaneous Expenses,40200,Miscellaneous Expenses,5034,To undertake a Pest Bird Shooting programme and Clearance and Disinfection as described on site visit. 595 + VAT,04/09/2019,0140582,595.00,Revenue,Rentokil,76639,,
Chorley Borough Council,http://statistics.data.gov.uk/id/local-authority/30UE,Service Management & Support,1009,Customer & Digital,Supplies-Grounds Maintenance,40025,"Equipment, Furniture & Materia",5023,20 x Trustee Amenity 5L @ 27.00each,04/09/2019,0140225,540.00,Revenue,Rigby Taylor Ltd,16299,,
Chorley Borough Council,http://statistics.data.gov.uk/id/local-authority/30UE,Service Management & Support,1009,Customer & Digital,Supplies-Grounds Maintenance,40025,"Equipment, Furniture & Materia",5023,40 x Impact line marking paint 10L @26.00 each,04/09/2019,0140225,"1,040.00",Revenue,Rigby Taylor Ltd,16299,,
Chorley Borough Council,http://statistics.data.gov.uk/id/local-authority/30UE,Service Management & Support,1009,Customer & Digital,Supplies-Grounds Maintenance,40025,"Equipment, Furniture & Materia",5023,1 x Icade 1L @ 45.00,04/09/2019,0140225,45.00,Revenue,Rigby Taylor Ltd,16299,,
Chorley Borough Council,http://statistics.data.gov.uk/id/local-authority/30UE,Elections,1012,Policy & Governance,Postages,40082,Communication and Computing,5028,business reply for electoral registration April 2019 - October 2019 RRHA-KZCB-CAXA,25/09/2019,0140952,"1,287.91",Revenue,Royal Mail Group Plc,17522,,
Chorley Borough Council,http://statistics.data.gov.uk/id/local-authority/30UE,Democratic Represent and  Mgnt,1007,Business Development & Growth,Electricity,20013,Energy Costs,5006,16/5/19 to 13/8/19,04/09/2019,0140520,659.88,Revenue,Scottish Power,18998,,
Chorley Borough Council,http://statistics.data.gov.uk/id/local-authority/30UE,Business Support,1095,Business Development & Growth,Security Service,40062,Services,5027,"6 month contract billed hourly 109 hours x26 weeks = 2834 hrs x 13.90 = 39,392.60, + 500 in lieu of any overtime = 39,892.60",20/09/2019,0140621,"6,922.20",Revenue,Securitas Security Services (UK) Ltd,70693,,
Chorley Borough Council,http://statistics.data.gov.uk/id/local-authority/30UE,Homelessness,1075,Early Intervention,Training Course Fees,17010,Indirect Employee Expenses,5002,Emotional Labour and Resilience Training - Chorley Town Hall 04/09/2019,27/09/2019,0140663,923.81,Revenue,Shelter Training,21902,,
Chorley Borough Council,http://statistics.data.gov.uk/id/local-authority/30UE,Homelessness,1075,Early Intervention,Training Allowance,14005,Direct Employee Expenses,5001,Housing Law Update (Manchester) for 3 delegates - 02/10/2019,27/09/2019,0140997,459.00,Revenue,Shelter Training,21902,,
Chorley Borough Council,http://statistics.data.gov.uk/id/local-authority/30UE,Tourism,1039,Policy & Governance,Professional Fees,40063,Services,5027,"Exhibition hire, delivery and collection of Karl Blossfeldt photographic exhibition at Astley Hall, Chorley.",11/09/2019,0140699,850.00,Revenue,South Bank Centre,18635,,
Chorley Borough Council,http://statistics.data.gov.uk/id/local-authority/30UE,Service Management & Support,1009,Customer & Digital,Vehicles and Plant Maintenance,30045,Direct Transport Costs,5016,1 x starter cord 2.5mm (CS67051) @ 12.55each,04/09/2019,0140406,12.55,Revenue,Spalding (UK) Limited,20264,,
Chorley Borough Council,http://statistics.data.gov.uk/id/local-authority/30UE,Service Management & Support,1009,Customer & Digital,Supplies-Grounds Maintenance,40025,"Equipment, Furniture & Materia",5023,5 x Bow saw 21`` Bahco c/w blade (21254) @ 11.12each,04/09/2019,0140406,55.60,Revenue,Spalding (UK) Limited,20264,,
Chorley Borough Council,http://statistics.data.gov.uk/id/local-authority/30UE,Service Management & Support,1009,Customer & Digital,Supplies-Grounds Maintenance,40025,"Equipment, Furniture & Materia",5023,10 x Bow saw blade 21 `` (04178) @4.07each,04/09/2019,0140406,40.70,Revenue,Spalding (UK) Limited,20264,,
Chorley Borough Council,http://statistics.data.gov.uk/id/local-authority/30UE,Service Management & Support,1009,Customer & Digital,Supplies-Grounds Maintenance,40025,"Equipment, Furniture & Materia",5023,"5 x Garden hoe (Dutch hoe), 5`` (27207) @ 6.95",04/09/2019,0140406,30.00,Revenue,Spalding (UK) Limited,20264,,
Chorley Borough Council,http://statistics.data.gov.uk/id/local-authority/30UE,Service Management & Support,1009,Customer & Digital,Supplies-Grounds Maintenance,40025,"Equipment, Furniture & Materia",5023,5 x DELUXE BYPASS SECATEUR @ 5.00 each,04/09/2019,0140406,25.00,Revenue,Spalding (UK) Limited,20264,,
Chorley Borough Council,http://statistics.data.gov.uk/id/local-authority/30UE,Service Management & Support,1009,Customer & Digital,Supplies-Grounds Maintenance,40025,"Equipment, Furniture & Materia",5023,1 x Tyre Guard 25L @99.00,04/09/2019,0140406,99.00,Revenue,Spalding (UK) Limited,20264,,
Chorley Borough Council,http://statistics.data.gov.uk/id/local-authority/30UE,Service Management & Support,1009,Customer & Digital,Supplies-Grounds Maintenance,40025,"Equipment, Furniture & Materia",5023,5 x 4 Ib (1.8kg) lump hammer @ 6.90each,04/09/2019,0140406,34.50,Revenue,Spalding (UK) Limited,20264,,
Chorley Borough Council,http://statistics.data.gov.uk/id/local-authority/30UE,Service Management & Support,1009,Customer & Digital,Supplies-Grounds Maintenance,40025,"Equipment, Furniture & Materia",5023,5 x Adjustable spanner wrench 200mm(8``) @ 10.00each,04/09/2019,0140406,50.00,Revenue,Spalding (UK) Limited,20264,,
Chorley Borough Council,http://statistics.data.gov.uk/id/local-authority/30UE,Central Support Services,1009,Early Intervention,Miscellaneous Expenses,40200,Miscellaneous Expenses,5034,Spice / Tempo enabling access to Time Credits network & support from Tempo to fully transition management to Chorley Council.,25/09/2019,0140926,"7,125.00",Revenue,Spice Innovations Ltd T/A Tempo Time Credits,61318,,
Chorley Borough Council,http://statistics.data.gov.uk/id/local-authority/30UE,Democratic Represent and  Mgnt,1007,Early Intervention,Consultants` Fees,40077,Services,5027,Waiver approved - Leisure Contract,04/09/2019,0140519,"1,088.20",Revenue,Sport Leisure and Culture Consultancy,77651,,
Chorley Borough Council,http://statistics.data.gov.uk/id/local-authority/30UE,Capital,Capital,Business Development & Growth,Other Capital Related Fees,03024,Capital Expenditure,Capital,Public�Realm�&�Highway�Design as�per�contract30�months�from�w/c5/6/17. �April2019�-December2019 �Invoiced�monthly�,04/09/2019,0140566,"3,511.35",Capital,Street Civil Engineering Limited,76750,,
Chorley Borough Council,http://statistics.data.gov.uk/id/local-authority/30UE,Unapportionable Central OHeads,1009,Business Development & Growth,Asset Maintenance Fund,20012,Repairs Maintenance & Alts,5005,Cellar room 16 tanking,04/09/2019,0140542,"2,250.00",Revenue,Stringfellow Bldg Cntrctrs Ltd,17893,,
Chorley Borough Council,http://statistics.data.gov.uk/id/local-authority/30UE,Capital,Capital,Early Intervention,Grants,03002,Capital Expenditure,Capital,,13/09/2019,0140801,"5,915.00",Capital,Stringfellow Bldg Cntrctrs Ltd,17893,,
Chorley Borough Council,http://statistics.data.gov.uk/id/local-authority/30UE,Unapportionable Central OHeads,1009,Business Development & Growth,General Repairs - Reactive,20004,Repairs Maintenance & Alts,5005,Reactive works,25/09/2019,0140887,368.35,Revenue,Stringfellow Bldg Cntrctrs Ltd,17893,,
Chorley Borough Council,http://statistics.data.gov.uk/id/local-authority/30UE,Unapportionable Central OHeads,1009,Business Development & Growth,General Repairs - Reactive,20004,Repairs Maintenance & Alts,5005,Reactive works,25/09/2019,0140888,691.22,Revenue,Stringfellow Bldg Cntrctrs Ltd,17893,,
Chorley Borough Council,http://statistics.data.gov.uk/id/local-authority/30UE,Unapportionable Central OHeads,1009,Business Development & Growth,General Repairs - Reactive,20004,Repairs Maintenance & Alts,5005,Blanket reactive,25/09/2019,0140892,297.40,Revenue,Stringfellow Bldg Cntrctrs Ltd,17893,,
Chorley Borough Council,http://statistics.data.gov.uk/id/local-authority/30UE,Unapportionable Central OHeads,1009,Business Development & Growth,General Repairs - Reactive,20004,Repairs Maintenance & Alts,5005,Blanket reactive,25/09/2019,0140895,289.00,Revenue,Stringfellow Bldg Cntrctrs Ltd,17893,,
Chorley Borough Council,http://statistics.data.gov.uk/id/local-authority/30UE,Tourism,1039,Business Development & Growth,External Contractor,40198,Miscellaneous Expenses,5034,Utility Survey at Astley Coach House for Flower Show,04/09/2019,0140371,825.00,Revenue,Survey Operations Ltd,55910,,
Chorley Borough Council,http://statistics.data.gov.uk/id/local-authority/30UE,Business Support,1095,Early Intervention,Furniture - Purchase,40012,"Equipment, Furniture & Materia",5023,Primrose Gardens - Lamps & Decorative Accessories,04/09/2019,0140035,570.00,Revenue,Teal,78005,,
Chorley Borough Council,http://statistics.data.gov.uk/id/local-authority/30UE,Central Support Services,1009,Customer & Digital,ICT Software Implementation,40114,Communication and Computing,5028,Professional services for Azure/DR Architecture for Teams,04/09/2019,0139872,"4,287.50",Revenue,TechAlign Ltd,77896,,
Chorley Borough Council,http://statistics.data.gov.uk/id/local-authority/30UE,Central Support Services,1009,Customer & Digital,ICT Software Implementation,40114,Communication and Computing,5028,CCTV Chorley Town Centre - Technology Solutions,11/09/2019,0140512,715.00,Revenue,Technology Solutions,72376,,
Chorley Borough Council,http://statistics.data.gov.uk/id/local-authority/30UE,Homelessness,1075,Early Intervention,Miscellaneous Expenses,40200,Miscellaneous Expenses,5034,Tickets for the 1pm Show on Wednesday 28th August 29 (3-14) @ 6.00 3 (Under 3s) @ 5.95 19 (Adults) @ 7.00,04/09/2019,0140405,339.45,Revenue,The Blackpool Tower,78209,,
Chorley Borough Council,http://statistics.data.gov.uk/id/local-authority/30UE,Homelessness,1075,Early Intervention,Miscellaneous Expenses,40200,Miscellaneous Expenses,5034,"Private Use of Ballroom South Balcony (Middle) Halal Sandwich Platters for 57, Tea /Coffee for 57, Jugs of Water",25/09/2019,0140470,570.00,Revenue,The Blackpool Tower,78209,,
Chorley Borough Council,http://statistics.data.gov.uk/id/local-authority/30UE,Unapportionable Central OHeads,1009,Business Development & Growth,Planned Maintenance,20006,Repairs Maintenance & Alts,5005,PPM blanket,25/09/2019,0140623,560.00,Revenue,The Guardian Shutter Co LTD,21769,,
Chorley Borough Council,http://statistics.data.gov.uk/id/local-authority/30UE,Central Support Services,1009,Customer & Digital,Computer - Support Services,40111,Communication and Computing,5028,"Assistance with ongoing telephony issues, meeting with NViron, TechAlign, HybrIT",04/09/2019,0140463,325.00,Revenue,The Networking People (NorthWest) Ltd T/a TNP Ltd,73446,,
Chorley Borough Council,http://statistics.data.gov.uk/id/local-authority/30UE,Unapportionable Central OHeads,1009,Policy & Governance,Exhibitions & Special Events,40158,Miscellaneous Expenses,5034,"10,000 Chorley Live Beer Mats",25/09/2019,0140782,407.00,Revenue,Thirstys.co.uk ltd,51260,,
Chorley Borough Council,http://statistics.data.gov.uk/id/local-authority/30UE,Central Support Services,1009,Business Development & Growth,Professional Fees,40063,Services,5027,Tatton Feasibility Study - (including healthcare planner),11/09/2019,0140732,"7,000.00",Revenue,Trebbi Continuum,77723,,
Chorley Borough Council,http://statistics.data.gov.uk/id/local-authority/30UE,Capital,Capital,Policy & Governance,Purchase Money,03027,Capital Expenditure,Capital,TVS Property Purchase Money,03/09/2019,0140257,"31,450,000.00",Capital,TVS Supply Chain Solutions Limited,78223,,
Chorley Borough Council,http://statistics.data.gov.uk/id/local-authority/30UE,Business Support,1095,Policy & Governance,Miscellaneous Expenses,40200,Miscellaneous Expenses,5034,Rent Element,03/09/2019,0140257,"-200,264.01",Revenue,TVS Supply Chain Solutions Limited,78223,,
Chorley Borough Council,http://statistics.data.gov.uk/id/local-authority/30UE,Business Support,1095,Policy & Governance,Miscellaneous Expenses,40200,Miscellaneous Expenses,5034,rent element,03/09/2019,0140262,"22,757.46",Revenue,TVS Supply Chain Solutions Limited,78223,,
Chorley Borough Council,http://statistics.data.gov.uk/id/local-authority/30UE,Business Support,1095,Policy & Governance,Miscellaneous Expenses,40200,Miscellaneous Expenses,5034,Rent Element,03/09/2019,0140591,"63,720.30",Revenue,TVS Supply Chain Solutions Limited,78223,,
Chorley Borough Council,http://statistics.data.gov.uk/id/local-authority/30UE,Unapportionable Central OHeads,1009,Policy & Governance,Miscellaneous Expenses,40200,Miscellaneous Expenses,5034,,25/09/2019,0140840,"1,545.60",Revenue,UK Healthcare (BDHSC),17241,,
Chorley Borough Council,http://statistics.data.gov.uk/id/local-authority/30UE,Unapportionable Central OHeads,1009,Customer & Digital,Service Fees,40056,Services,5027,Daily hybrid mail & annual billing,04/09/2019,0140326,752.46,Revenue,UKMAIL Ltd (Mail),57758,,
Chorley Borough Council,http://statistics.data.gov.uk/id/local-authority/30UE,Unapportionable Central OHeads,1009,Customer & Digital,Service Fees,40056,Services,5027,Daily hybrid mail & annual billing,04/09/2019,0140475,815.92,Revenue,UKMAIL Ltd (Mail),57758,,
Chorley Borough Council,http://statistics.data.gov.uk/id/local-authority/30UE,Unapportionable Central OHeads,1009,Customer & Digital,Service Fees,40056,Services,5027,Daily hybrid mail & annual billing,11/09/2019,0140617,728.60,Revenue,UKMAIL Ltd (Mail),57758,,
Chorley Borough Council,http://statistics.data.gov.uk/id/local-authority/30UE,Unapportionable Central OHeads,1009,Customer & Digital,Service Fees,40056,Services,5027,Daily hybrid mail & annual billing,11/09/2019,0140656,"1,232.71",Revenue,UKMAIL Ltd (Mail),57758,,
Chorley Borough Council,http://statistics.data.gov.uk/id/local-authority/30UE,Unapportionable Central OHeads,1009,Customer & Digital,Service Fees,40056,Services,5027,Daily hybrid mail & annual billing,25/09/2019,0140785,740.08,Revenue,UKMAIL Ltd (Mail),57758,,
Chorley Borough Council,http://statistics.data.gov.uk/id/local-authority/30UE,Corporate Management,1008,Chief Executive,Grants To Other Organisations,40127,Grants and Subscriptions,5031,seed funding EPIC to set up and publicise new chorley based charity,16/09/2019,0140829,"2,000.00",Revenue,Unify Credit Union Ltd,55509,,
Chorley Borough Council,http://statistics.data.gov.uk/id/local-authority/30UE,Control Accounts,Control,Policy & Governance,General Balances,00100,Balance Sheet,Balance,Monthly Deductions from Payroll,16/09/2019,0140834,"2,979.16",Revenue,Unify Credit Union Ltd,55509,,
Chorley Borough Council,http://statistics.data.gov.uk/id/local-authority/30UE,Capital,Capital,Early Intervention,Grants,03002,Capital Expenditure,Capital,ADDRESS REDACTED,04/09/2019,0140531,"3,836.25",Capital,UPS Building and Maintenance Ltd,76235,,
Chorley Borough Council,http://statistics.data.gov.uk/id/local-authority/30UE,Central Support Services,1009,Customer & Digital,Telephones - Rentals,40083,Communication and Computing,5028,25 Aug 19 - 24 Aug 2019,11/09/2019,0140524,"2,641.75",Revenue,Virgin Media Payments Ltd,17632,,
Chorley Borough Council,http://statistics.data.gov.uk/id/local-authority/30UE,Unapportionable Central OHeads,1009,Policy & Governance,Car Leasing Payment,14100,Direct Employee Expenses,5001,NAME REDACTED VIN REDACTED,13/09/2019,0136852,272.15,Revenue,VWFS UK Ltd T/A Volkswagen Group Leasing,56010,,
Chorley Borough Council,http://statistics.data.gov.uk/id/local-authority/30UE,Unapportionable Central OHeads,1009,Policy & Governance,Car Leasing Payment,14100,Direct Employee Expenses,5001,,13/09/2019,0136852,24.40,Revenue,VWFS UK Ltd T/A Volkswagen Group Leasing,56010,,
Chorley Borough Council,http://statistics.data.gov.uk/id/local-authority/30UE,Control Accounts,Control,Policy & Governance,Manual Control Account,00001,Balance Sheet,Balance,,13/09/2019,0136852,-24.40,Revenue,VWFS UK Ltd T/A Volkswagen Group Leasing,56010,,
Chorley Borough Council,http://statistics.data.gov.uk/id/local-authority/30UE,Tourism,1039,Policy & Governance,Professional Fees,40063,Services,5027,prize 2019,04/09/2019,0140403,400.00,Revenue,Wacks Wicked Plants,71501,,
Chorley Borough Council,http://statistics.data.gov.uk/id/local-authority/30UE,Service Management & Support,1009,Customer & Digital,Supplies-Grounds Maintenance,40025,"Equipment, Furniture & Materia",5023,Supply Summer Bedding 2019,20/09/2019,0140774,"5,663.03",Revenue,Walkers Oakfield Nurseries,63090,,
Chorley Borough Council,http://statistics.data.gov.uk/id/local-authority/30UE,Unapportionable Central OHeads,1009,Business Development & Growth,Water - Metered Supplies,20022,Water Services,5009,15/6/19 to 27/,25/09/2019,0140736,"1,200.05",Revenue,Water-plus,17926,,
Chorley Borough Council,http://statistics.data.gov.uk/id/local-authority/30UE,Corporate Management,1008,Business Development & Growth,Water - Metered Supplies,20022,Water Services,5009,25/10/18 to 15/1/19,25/09/2019,0140965,"2,313.77",Revenue,Water-plus,17926,,
Chorley Borough Council,http://statistics.data.gov.uk/id/local-authority/30UE,Corporate Management,1008,Business Development & Growth,Water - Metered Supplies,20022,Water Services,5009,10/5/19 to 29/8/19,25/09/2019,0140966,"3,135.26",Revenue,Water-plus,17926,,
Chorley Borough Council,http://statistics.data.gov.uk/id/local-authority/30UE,Economic Development,1096,Business Development & Growth,Water - Metered Supplies,20022,Water Services,5009,3/6/19 to 12/9/19,25/09/2019,0140967,700.62,Revenue,Water-plus,17926,,
Chorley Borough Council,http://statistics.data.gov.uk/id/local-authority/30UE,Corporate Management,1008,Business Development & Growth,Water - Metered Supplies,20022,Water Services,5009,16/1/19 to 9/5,25/09/2019,0140968,"2,373.85",Revenue,Water-plus,17926,,
Chorley Borough Council,http://statistics.data.gov.uk/id/local-authority/30UE,Business Support,1095,Business Development & Growth,Miscellaneous Expenses,40200,Miscellaneous Expenses,5034,1000 Strawberry Fields pens - promo items,27/09/2019,0140970,390.00,Revenue,WeBrand4You,68716,,
Chorley Borough Council,http://statistics.data.gov.uk/id/local-authority/30UE,Unapportionable Central OHeads,1009,Chief Executive,Postages,40082,Communication and Computing,5028,"Mail collections for Union St and Town Hall, April `19 to March `20",06/09/2019,0140580,387.23,Revenue,Whistl North Limited,67256,,
Chorley Borough Council,http://statistics.data.gov.uk/id/local-authority/30UE,Unapportionable Central OHeads,1009,Chief Executive,Postages,40082,Communication and Computing,5028,"Mail collections for Union St and Town Hall, April `19 to March `20",11/09/2019,0140725,365.19,Revenue,Whistl North Limited,67256,,
Chorley Borough Council,http://statistics.data.gov.uk/id/local-authority/30UE,Planning Policy,1092,Business Development & Growth,Legal Fees,40171,Miscellaneous Expenses,5034,Telephone advice on 21/06,11/09/2019,0140453,900.00,Revenue,Wilson Horne,77750,,
Chorley Borough Council,http://statistics.data.gov.uk/id/local-authority/30UE,Central Support Services,1009,Customer & Digital,Other Fees,40212,Miscellaneous Expenses,5034,Xeretec - printing,25/09/2019,0140659,401.09,Revenue,Xeretec Document Solutions,20052,,
Chorley Borough Council,http://statistics.data.gov.uk/id/local-authority/30UE,Homelessness,1075,Early Intervention,Miscellaneous Expenses,40200,Miscellaneous Expenses,5034,Taxi fares for the Syrian Families for August 2019,27/09/2019,0140667,"1,114.70",Revenue,Yellow Cabs (North West Ltd),52276,,
